fUST/lending_fUST_20260122
["ID","MTS","AMOUNT","RATE_DAILY","PERIOD"]
[403016360,1769064638241,-3877.0,0.00020783,2]
[403016361,1769064638250,-729.0,0.00020829,2]
[403016362,1769064638260,-1104.6772155,0.00020835,2]
[403016363,1769064638270,-70.61960397,0.00020864,60]
[403016364,1769064638281,-429.38039603,0.00020864,60]
[403016365,1769064638291,-250.0,0.00020864,60]
[403016366,1769064638300,-500.0,0.00020864,60]
[403016367,1769064638309,-200.33961367,0.00020892,2]
[403016368,1769064638318,-333.1059623,0.000209,2]
[403016369,1769064638329,-602.8940377,0.000209,2]
[403016370,1769064638338,-500.0,0.00020926,4]
[403016371,1769064638347,-529.0,0.00020926,4]
[403016372,1769064638356,-21.77471186,0.00020926,4]
[403016373,1769064638367,-228.22528814,0.00020926,4]
[403016374,1769064638376,-223.86271813,0.00021001,60]
[403016375,1769064638387,-276.13728187,0.00021001,60]
[403016376,1769064638396,-500.0,0.00021001,60]
[403016377,1769064638406,-500.0,0.00021063,4]
[403016378,1769064638416,-529.0,0.00021063,4]
[403016379,1769064638424,-500.0,0.00021069,2]
[403016380,1769064638434,-500.0,0.00021069,2]
[403016381,1769064638443,-500.0,0.00021069,2]
[403016382,1769064638452,-85.17581991,0.00021069,2]
[403016383,1769064638463,-304.62266532,0.00021069,2]
[403016384,1769064638473,-253.47703468,0.00021069,2]
[403016385,1769064638484,-246.52296532,0.00021069,2]
[403016386,1769064638493,-309.15041161,0.00021069,2]
[403016387,1769064638503,-500.0,0.00021069,2]
[403016388,1769064638512,-500.0,0.00021069,2]
[403016389,1769064638521,-266.70859813,0.00021069,2]
[403016390,1769064638531,-347.49643929,0.00021069,2]
[403016391,1769064638541,-499.10158565,0.00021069,2]
[403016398,1769064641326,-3e-08,0.00021069,2]
[403016399,1769064641339,-0.89841432,0.00021069,2]
[403016400,1769064641348,-511.10335901,0.00021069,2]
[403016401,1769064641357,-365.88308349,0.00021069,2]
[403016402,1769064641367,-203.64178857,0.00021069,2]
[403016403,1769064641377,-157.51395129,0.00021069,2]
[403016404,1769064641386,-500.0,0.0002107,2]
[403016405,1769064641400,-100.9948026,0.0002109,2]
[403016447,1769064643050,-512.589,0.0002109,2]
[403016449,1769064643062,-455.08862534,0.0002109,2]
[403016455,1769064643110,-1329.73951236,0.0002109,2]
[403016457,1769064643119,-346.63890543,0.0002109,2]
[403016459,1769064643128,-1952.57850022,0.000211,2]
[403016461,1769064643137,-883.30415546,0.000211,2]
[403016463,1769064643147,-3047.85300269,0.000211,2]
[403016465,1769064643156,-500.0,0.00021138,60]
[403016467,1769064643165,-621.16340839,0.00021138,60]
[403016469,1769064643175,-9518.72251545,0.00021167,2]
[403016471,1769064643186,-315.0,0.00021167,2]
[403016492,1769064645881,-2290.2329108,0.00021167,2]
[403016493,1769064645946,-16424.94930131,0.00021167,2]
[403016494,1769064645956,-193.834618,0.00021195,2]
[403016495,1769064645965,-500.0,0.000212,4]
[403016496,1769064645975,-529.0,0.000212,4]
[403016497,1769064645984,-360.0,0.00021201,120]
[403016498,1769064645994,-388.4179188,0.00021273,2]
[403016499,1769064646003,-194.4589902,0.00021273,2]
[403016500,1769064646013,-194.4589902,0.00021273,2]
[403016501,1769064646023,-194.4589902,0.00021273,2]
[403016502,1769064646032,-194.4589902,0.00021273,2]
[403016503,1769064646042,-194.4589902,0.00021273,2]
[403016504,1769064646051,-194.4589902,0.00021273,2]
[403016505,1769064646060,-194.4589902,0.00021273,2]
[403016506,1769064646070,-194.4589902,0.00021273,2]
[403016507,1769064646089,-194.4589902,0.00021273,2]
[403016508,1769064646107,-194.4589902,0.00021273,2]
[403016509,1769064646116,-191.9566129,0.00021273,2]
[403016510,1769064646125,-500.0,0.00021275,60]
[403016511,1769064646134,-579.81,0.00021285,3]
[403016512,1769064646144,-386.53,0.00021295,3]
[403016513,1769064646154,-193.27,0.00021295,3]
[403016514,1769064646163,-312.0,0.00021313,120]
[403016515,1769064646173,-550.70783286,0.00021337,4]
[403016516,1769064646182,-529.0,0.00021337,4]
[403016517,1769064646192,-5991.23,0.00021344,2]
[403016518,1769064646203,-500.0,0.00021344,2]
[403016519,1769064646214,-174.0,0.00021376,120]
[403016520,1769064646224,-160.0,0.00021376,120]
[403016521,1769064646235,-4456.25,0.000214,2]
[403016522,1769064646244,-238.32,0.000214,2]
[403016523,1769064646254,-500.0,0.00021412,60]
[403016524,1769064646265,-174.0,0.00021412,120]
[403016525,1769064646274,-161.0,0.00021412,120]
[403016526,1769064646285,-175.0,0.00021412,120]
[403016527,1769064646297,-163.0,0.00021412,120]
[403016528,1769064646308,-165.0,0.0002142,120]
[403016529,1769064646320,-170.0,0.0002142,120]
[403016530,1769064646330,-1667.0,0.0002147,14]
[403016531,1769064646340,-529.0,0.00021474,4]
[403016532,1769064646349,-1040.59113896,0.000215,2]
[403016533,1769064646359,-12871.57492998,0.000215,2]
[403016534,1769064646368,-520.90891984,0.00021529,30]
[403016535,1769064646378,-500.0,0.00021549,60]
[403016536,1769064646387,-2030.0,0.000216,3]
[403016537,1769064646396,-529.0,0.00021611,4]
[403016538,1769064646406,-500.0,0.00021618,2]
[403016539,1769064646416,-2487.15318209,0.00021638,2]
[403016540,1769064646425,-445.0454363,0.00021665,2]
[403016541,1769064646434,-270.73124672,0.00021686,60]
[403016542,1769064646444,-204.0,0.0002173,2]
[403016543,1769064646453,-529.0,0.00021748,4]
[403016544,1769064646463,-150.95471358,0.00021749,5]
[403016545,1769064646474,-529.0,0.00021885,4]
[403016546,1769064646483,-500.0,0.00021892,2]
[403016547,1769064646493,-309.1673,0.00021908,7]
[403016548,1769064646503,-309.1673,0.00021908,7]
[403016549,1769064646512,-1505.1990295,0.00021918,7]
[403016550,1769064646523,-150.0,0.00021918,2]
[403016551,1769064646532,-150.0,0.00021918,2]
[403016552,1769064646542,-7880.0,0.00022,2]
[403016553,1769064646551,-172.18704626,0.00022,10]
[403016554,1769064646560,-567.66956032,0.00022,14]
[403016555,1769064646569,-1000.0,0.00022,22]
[403016556,1769064646579,-1093.65123922,0.00022,20]
[403016557,1769064646588,-1908.0,0.00022,2]
[403016558,1769064646599,-500.0,0.00022,2]
[403016559,1769064646609,-1238.4,0.00022,7]
[403016560,1769064646619,-151.0,0.00022,7]
[403016561,1769064646628,-529.0,0.00022022,4]
[403016562,1769064646638,-423.12,0.000221,7]
[403016563,1769064646648,-529.0,0.00022159,4]
[403016564,1769064646657,-563.03153916,0.00022166,2]
[403016565,1769064646666,-170.0,0.00022174,120]
[403016566,1769064646676,-1085.78896667,0.00022186,2]
[403016567,1769064646685,-151.0,0.000222,5]
[403016568,1769064646694,-243.29712588,0.0002222,2]
[403016569,1769064646704,-1109.76252607,0.0002222,2]
[403016570,1769064646713,-151.0,0.00022234,2]
[403016571,1769064646723,-10407.324558,0.00022234,30]
[403016572,1769064646733,-151.0,0.00022234,2]
[403016573,1769064646742,-508.67856532,0.00022234,2]
[403016574,1769064646757,-252.34465968,0.00022234,2]
[403016575,1769064646766,-761.023225,0.00022234,2]
[403016576,1769064646775,-245.93804831,0.00022234,2]
[403016577,1769064646787,-515.08517669,0.00022234,2]
[403016578,1769064646796,-761.023225,0.00022234,2]
[403016579,1769064646805,-592.878666,0.00022234,2]
[403016580,1769064646816,-592.878666,0.00022234,2]
[403016581,1769064646826,-592.878666,0.00022234,2]
[403016582,1769064646835,-592.878666,0.00022234,2]
[403016583,1769064646844,-151.0,0.00022234,2]
[403016584,1769064646854,-151.0,0.00022234,2]
[403016585,1769064646863,-380.19441317,0.0002225,30]
[403016586,1769064696780,150.0,0.00014379,2]
[403016587,1769064697193,150.0,0.00015063,2]
[403016588,1769064751488,-150.0,0.00015748,2]
[403016589,1769064751518,-158.46,0.00016433,2]
[403016590,1769064751544,-198.08,0.00017117,2]
[403016591,1769064751571,-150.30759023,0.00017802,2]
[403016592,1769064769394,150.0,0.00014522,2]
[403016593,1769064783164,-150.0,0.00015213,2]
[403016594,1769064783195,-144.63023234,0.00015905,2]
[403016595,1769064841740,150.0,0.00014389,2]
[403016596,1769064842401,150.0,0.00015075,2]
[403016598,1769064857075,-150.0,0.0001576,2]
[403016599,1769064857102,-150.0,0.00016445,2]
[403016600,1769064857130,-23.00658402,0.0001713,2]
[403016601,1769064859603,-126.99341598,0.0001713,2]
[403016602,1769064859628,-119.34707209,0.00017815,2]
[403016667,1769064913322,150.0,0.00014467,2]
[403016668,1769064916415,-150.0,0.00015156,2]
[403016669,1769064916444,-150.0,0.00015845,2]
[403016670,1769064916473,-121.29126605,0.00016534,2]
[403016672,1769064986913,150.0,0.00014379,2]
[403016673,1769064987339,150.0,0.00015064,2]
[403016674,1769064991540,-150.0,0.00015748,2]
[403016675,1769064991579,-150.0,0.00016433,2]
[403016676,1769064991602,-150.0,0.00016879,2]
[403016677,1769064991640,-150.0,0.00017118,2]
[403016678,1769064991668,-69.75194638,0.00017802,2]
[403016679,1769065058131,150.0,0.00014433,2]
[403016680,1769065058164,150.0,0.0001512,2]
[403016681,1769065058438,150.0,0.00015807,2]
[403016682,1769065058885,150.0,0.00016495,2]
[403016683,1769065068592,-150.0,0.00017182,2]
[403016684,1769065068620,-88.89862971,0.00017869,2]
[403016685,1769065070516,-61.10137029,0.00017869,2]
[403016686,1769065070543,-155.59376199,0.00018431,2]
[403016687,1769065072106,-240.54574161,0.00018431,2]
[403016688,1769065124143,150.0,0.0001446,2]
[403016689,1769065124571,150.0,0.00015149,2]
[403016690,1769065124963,150.0,0.00015838,2]
[403016691,1769065125762,-316.53004322,0.00018417,2]
[403016692,1769065186491,-192.88672286,0.00018402,2]
[403016693,1769065253322,150.0,0.00014373,2]
[403016694,1769065284771,-1041.66666667,0.00018374,2]
[403016695,1769065284798,-160.0,0.00018389,2]
[403016696,1769065284824,-150.0,0.00018395,2]
[403016701,1769065300220,-157.0,0.00019151,3]
[403016702,1769065300248,-1200.0,0.00020135,2]
[403016703,1769065300276,-300.0,0.00020135,2]
[403016704,1769065300294,-157.0,0.00020136,2]
[403016705,1769065300314,-1200.0,0.00020136,2]
[403016706,1769065300324,-300.0,0.00020136,2]
[403016707,1769065300335,-2887.08662149,0.00020136,2]
[403016709,1769065381826,150.0,0.00014372,2]
[403016710,1769065382198,150.0,0.00015057,2]
[403016711,1769065382625,150.0,0.00015741,2]
[403016712,1769065383046,150.0,0.00016425,2]
[403016713,1769065383482,173.71,0.0001711,2]
[403016714,1769065383879,208.46,0.00017794,2]
[403016715,1769065384282,243.2,0.00018479,2]
[403016721,1769065453252,150.0,0.00014768,2]
[403016722,1769065453657,150.0,0.00015471,2]
[403016723,1769065454108,150.0,0.00016174,2]
[403016724,1769065454549,150.0,0.00016877,2]
[403016725,1769065454991,150.0,0.00017581,2]
[403016726,1769065455397,150.0,0.00018284,2]
[403016727,1769065522347,150.0,0.00014812,2]
[403016728,1769065522750,150.0,0.00015518,2]
[403016729,1769065523188,150.0,0.00016223,2]
[403016730,1769065523605,150.0,0.00016928,2]
[403016737,1769065831842,-1041.66666667,0.0002004,2]
[403016738,1769065831852,-300.0,0.00020135,2]
[403016739,1769065831862,-9116.33222961,0.00020136,2]
[403016740,1769065831871,-150.0,0.00020208,2]
[403016761,1769065832109,-150.517,0.00020281,2]
[403016762,1769065832119,-218.401,0.00020281,2]
[403016763,1769065832128,-178.0,0.00020305,2]
[403016764,1769065832137,-536.44611971,0.00020767,2]
[403016940,1769065837870,-32.50820052,0.00020767,2]
[403016941,1769065837880,-500.0,0.00020767,2]
[403016942,1769065837888,-500.0,0.00020767,2]
[403016943,1769065837898,-500.0,0.00020767,2]
[403016944,1769065837907,-105.03394409,0.00020767,2]
[403016945,1769065837918,-394.96605591,0.00020767,2]
[403016946,1769065837927,-500.0,0.00020767,2]
[403016947,1769065837937,-500.0,0.00020767,2]
[403016948,1769065837946,-484.25327148,0.00020767,2]
[403016949,1769065837987,-15.74672852,0.00020767,2]
[403016950,1769065837996,-500.0,0.00020767,2]
[403016951,1769065838005,-500.0,0.00020767,2]
[403016952,1769065838014,-607.69815009,0.00020767,2]
[403016953,1769065838023,-500.0,0.00020767,2]
[403016954,1769065838033,-384.70787767,0.00020767,2]
[403016955,1769065838042,-500.0,0.00020767,2]
[403016956,1769065838052,-501.1103359,0.00020767,2]
[403016957,1769065838061,-500.0,0.00020767,2]
[403016958,1769065838071,-500.0,0.00020767,2]
[403016959,1769065838080,-500.0,0.00020767,2]
[403016960,1769065838089,-468.41612956,0.00020767,2]
[403016961,1769065838099,-500.0,0.00020767,2]
[403016962,1769065838108,-500.0,0.00020767,2]
[403016963,1769065838117,-500.0,0.00020767,2]
[403016964,1769065838126,-500.0,0.00020767,2]
[403016965,1769065838136,-500.0,0.00020767,2]
[403016966,1769065838144,-3.00044719,0.00020767,2]
[403016980,1769065840475,-496.99955281,0.00020767,2]
[403016981,1769065840484,-500.0,0.00020767,2]
[403016982,1769065840494,-500.0,0.00020767,2]
[403016983,1769065840504,-500.0,0.00020767,2]
[403016984,1769065840513,-500.0,0.00020767,2]
[403016985,1769065840523,-500.0,0.00020767,2]
[403016986,1769065840533,-500.0,0.00020767,2]
[403016987,1769065840542,-500.0,0.00020767,2]
[403016988,1769065840551,-500.0,0.00020767,2]
[403016989,1769065840561,-500.0,0.00020767,2]
[403016990,1769065840571,-500.0,0.00020767,2]
[403016991,1769065840580,-500.0,0.00020767,2]
[403016992,1769065840589,-500.0,0.00020767,2]
[403016993,1769065840599,-500.0,0.00020767,2]
[403016994,1769065840609,-500.0,0.00020767,2]
[403016995,1769065840618,-500.0,0.00020767,2]
[403016996,1769065840627,-500.0,0.00020767,2]
[403016997,1769065840637,-500.0,0.00020767,2]
[403016998,1769065840647,-500.0,0.00020767,2]
[403016999,1769065840655,-197.74888752,0.00020767,2]
[403017000,1769065840890,-3e-08,0.00020767,2]
[403017017,1769065846016,-302.25111245,0.00020767,2]
[403017018,1769065846026,-500.0,0.00020767,2]
[403017019,1769065846035,-500.0,0.00020767,2]
[403017020,1769065846045,-500.0,0.00020767,2]
[403017021,1769065846054,-556.69035913,0.00020767,2]
[403017022,1769065846064,-500.0,0.00020767,2]
[403017023,1769065846073,-500.0,0.00020767,2]
[403017024,1769065846084,-500.0,0.00020767,2]
[403017025,1769065846093,-500.0,0.00020767,2]
[403017026,1769065846103,-500.0,0.00020767,2]
[403017027,1769065846113,-8326.94505356,0.00020768,2]
[403017028,1769065846122,-193.26,0.00020769,3]
[403017029,1769065846133,-579.82,0.00020769,3]
[403017030,1769065846142,-24179.53270503,0.00020769,10]
[403017031,1769065866699,175.658,0.00018879,2]
[403017032,1769065924156,500.57163111,0.00013273,2]
[403017033,1769065925028,501.08710733,0.00013273,2]
[403017034,1769065926188,500.74694559,0.00013273,2]
[403017035,1769065927373,305.67355886,0.00013273,2]
[403017036,1769065927615,500.9366246,0.00013273,2]
[403017037,1769065928294,500.64445994,0.00013273,2]
[403017038,1769065928457,502.04598716,0.00013273,2]
[403017039,1769065929304,303.26558031,0.00013673,2]
[403017040,1769065931637,500.0,0.00013273,2]
[403017041,1769065931808,501.72480489,0.00013273,2]
[403017042,1769065932440,156.82398169,0.00013273,2]
[403017043,1769065987667,503.92943855,0.00013273,2]
[403017044,1769065987743,171.90766048,0.00013273,2]
[403017045,1769065989337,501.60829853,0.00013273,2]
[403017046,1769065990919,500.0,0.00013273,2]
[403017047,1769065992484,502.49042086,0.00013273,2]
[403017048,1769065993012,500.90757332,0.00013699,2]
[403017049,1769065999712,507.98534086,0.00013273,2]
[403017050,1769065999841,509.85636903,0.00013273,2]
[403017051,1769066033103,150.0,0.00014942,2]
[403017052,1769066043297,500.39244791,0.00013273,2]
[403017053,1769066043447,501.04899705,0.00013273,2]
[403017054,1769066043784,500.35112501,0.00013273,2]
[403017055,1769066044522,376.58327803,0.00013273,2]
[403017056,1769066044544,124.81116813,0.00013273,2]
[403017057,1769066044570,500.36586597,0.00013273,2]
[403017058,1769066046483,502.63954547,0.00013273,2]
[403017059,1769066047101,501.57185881,0.00013273,2]
[403017060,1769066047431,217.44804442,0.00013273,2]
[403017061,1769066048935,505.50609097,0.00013273,2]
[403017062,1769066056437,-202.667,0.00020368,2]
[403017063,1769066056472,-500.324,0.0002054,2]
[403017064,1769066056499,-320.35479983,0.0002072,2]
[403017065,1769066072003,-154.90048202,0.00020669,2]
[403017066,1769066072028,-130.53916855,0.0002072,2]
[403017067,1769066073536,-242.99275958,0.0002072,2]
[403017068,1769066077027,-229.49724042,0.0002072,2]
[403017069,1769066086154,151.0,0.000188,2]
[403017070,1769066086456,151.0,0.000175,2]
[403017071,1769066086484,-151.0,0.000201,4]
[403017072,1769066086508,-118.28269829,0.0002072,2]
[403017073,1769066086532,-19.49862005,0.00020767,2]
[403017074,1769066086748,151.0,0.000162,2]
[403017075,1769066087061,151.0,0.000149,2]
[403017076,1769066087373,151.0,0.000136,2]
[403017077,1769066102016,-167.48742703,0.00020759,10]
[403017078,1769066103654,503.26528953,0.00013273,2]
[403017079,1769066104770,-300.0,0.00020758,2]
[403017080,1769066104795,-6.27257297,0.00020768,2]
[403017081,1769066105566,503.07336157,0.00013273,2]
[403017082,1769066146542,-279.54327624,0.00020368,2]
[403017083,1769066151335,-211.06737301,0.00020368,2]
[403017084,1769066152832,-221.35935075,0.00020368,2]
[403017085,1769066160963,150.0,0.00014947,2]
[403017086,1769066161388,150.0,0.00015658,2]
[403017087,1769066161833,150.0,0.0001637,2]
[403017088,1769066162243,150.0,0.00017082,2]
[403017089,1769066162648,150.0,0.00017793,2]
[403017090,1769066163058,150.0,0.00018505,2]
[403017091,1769066166274,504.663903,0.00013273,2]
[403017092,1769066167428,502.18038779,0.00013273,2]
[403017093,1769066167565,-150.0,0.00019217,2]
[403017094,1769066167588,-90.97766195,0.00019808,2]
[403017095,1769066168565,500.85735596,0.00013273,2]
[403017096,1769066226611,504.04040901,0.00013273,2]
[403017097,1769066226954,501.73068259,0.00013273,2]
[403017098,1769066229835,150.0,0.00014946,2]
[403017099,1769066230375,150.0,0.00015658,2]
[403017100,1769066230792,150.0,0.00016369,2]
[403017101,1769066231247,150.0,0.00017081,2]
[403017102,1769066231652,150.0,0.00017793,2]
[403017130,1769066283893,500.0,0.00013273,2]
[403017131,1769066343589,501.50463274,0.00013273,2]
[403017132,1769066343675,501.52283773,0.00013273,2]
[403017133,1769066343809,501.75166472,0.00013273,2]
[403017134,1769066344014,283.87564453,0.00013273,2]
[403017135,1769066344248,264.67587913,0.00013273,2]
[403017136,1769066413323,2000.0,0.00018,2]
[403017137,1769066417336,266.4786952,0.000153,120]
[403017138,1769066464244,500.0,0.00013273,2]
[403017139,1769066464308,1000.0,0.00013821,2]
[403017140,1769066464363,1193.26575684,0.00014368,2]
[403017141,1769066523714,548.73129574,0.00013273,2]
[403017142,1769066523856,182.43250177,0.00013273,2]
[403017143,1769066523880,318.89840725,0.00013273,2]
[403017144,1769066527727,-729.0,0.00019227,2]
[403017145,1769066527756,-150.0,0.00019259,2]
[403017146,1769066527784,-154.90048202,0.0001929,2]
[403017147,1769066527814,-1041.66666667,0.0001935,2]
[403017148,1769066527844,-300.0,0.00019354,2]
[403017149,1769066527874,-174.85252386,0.00019355,2]
[403017150,1769066527903,-500.0,0.00019355,2]
[403017151,1769066527933,-500.0,0.00019355,2]
[403017152,1769066527962,-500.0,0.00019355,2]
[403017153,1769066527993,-500.0,0.00019355,2]
[403017154,1769066528023,-399.1706549,0.00019355,2]
[403017155,1769066528211,-100.8293451,0.00019355,2]
[403017156,1769066528243,-500.0,0.00019355,2]
[403017157,1769066528511,-500.0,0.00019355,2]
[403017158,1769066528545,-500.0,0.00019355,2]
[403017159,1769066528576,-522.27781244,0.00019355,2]
[403017160,1769066528608,-500.0,0.00019355,2]
[403017161,1769066528640,-217.35338821,0.00019355,2]
[403017162,1769066528672,-500.0,0.00019355,2]
[403017163,1769066528703,-500.0,0.00019355,2]
[403017164,1769066528734,-500.0,0.00019355,2]
[403017165,1769066528764,-397.89313312,0.00019355,2]
[403017166,1769066528796,-23.30264226,0.00019355,2]
[403017167,1769066528856,501.02089524,0.00013273,2]
[403017168,1769066528985,-476.69735774,0.00019355,2]
[403017169,1769066529017,-500.0,0.00019355,2]
[403017170,1769066529048,-329.27352722,0.00019355,2]
[403017171,1769066531367,-5865.14043252,0.00019356,2]
[403017172,1769066531383,-10000.01,0.00019356,2]
[403017173,1769066531398,-10000.01,0.00019356,2]
[403017174,1769066531423,-10000.01,0.00019356,2]
[403017175,1769066531452,-10000.01,0.00019356,2]
[403017176,1769066531614,-10000.01,0.00019356,2]
[403017177,1769066533710,-10000.01,0.00019356,2]
[403017179,1769066536639,-10000.01,0.00019356,2]
[403017180,1769066536914,-10000.01,0.00019356,2]
[403017181,1769066537188,-10000.01,0.00019356,2]
[403017182,1769066537431,-10000.01,0.00019356,2]
[403017183,1769066537555,-10000.01,0.00019356,2]
[403017184,1769066537680,-10000.01,0.00019356,2]
[403017185,1769066552165,150.0,0.00014393,2]
[403017186,1769066552585,150.0,0.00015079,2]
[403017187,1769066552996,150.0,0.00015764,2]
[403017188,1769066553465,150.0,0.0001645,2]
[403017189,1769066553871,180.45,0.00017135,2]
[403017190,1769066554300,216.55,0.0001782,2]
[403017191,1769066554933,252.64,0.00018506,2]
[403017192,1769066560755,-288.73,0.00019191,2]
[403017193,1769066560859,-8184.18,0.00019356,2]
[403017194,1769066560989,-2885.11820778,0.00019356,2]
[403017195,1769066583747,332.06324224,0.00013273,2]
[403017196,1769066624826,150.0,0.0001439,2]
[403017197,1769066625399,150.0,0.00015075,2]
[403017198,1769066625795,150.0,0.0001576,2]
[403017199,1769066626231,150.0,0.00016446,2]
[403017200,1769066626635,150.0,0.00017131,2]
[403017201,1769066627034,150.0,0.00017816,2]
[403017202,1769066627445,150.0,0.00018501,2]
[403017203,1769066627842,150.0,0.00019187,2]
[403017204,1769066642913,501.4211005,0.00013273,2]
[403017205,1769066643190,501.68029272,0.00013273,2]
[403017206,1769066645388,218.3308355,0.00013273,2]
[403017207,1769066645415,501.70214979,0.00013273,2]
[403017208,1769066645448,165.8312351,0.00013273,2]
[403017209,1769066735309,163.0,0.00018698,120]
[403017218,1769066764087,500.52511261,0.00013273,2]
[403017230,1769066823544,145.21961598,0.00013273,2]
[403017231,1769066823567,355.07673443,0.00013273,2]
[403017234,1769066904262,10000.01,0.00016326,2]
[403017235,1769066904285,10000.01,0.00016326,2]
[403017236,1769066904309,10000.01,0.00016326,2]
[403017238,1769066912736,-169.14197916,0.00016325,2]
[403017239,1769066912766,-210.87701479,0.00016325,2]
[403017240,1769066913014,-369.9192808,0.00016325,2]
[403017241,1769066913134,-3915.28313163,0.00016326,2]
[403017242,1769066915737,-10000.01,0.00016326,2]
[403017243,1769066915923,-10000.01,0.00016326,2]
[403017244,1769066919160,-2774.76170748,0.0001307,2]
[403017245,1769066919197,-4450.48658504,0.00016326,2]
[403017246,1769066929078,-10000.01,0.00016326,2]
[403017247,1769066935352,-10000.01,0.00016326,2]
[403017248,1769066938576,-10000.01,0.00016326,2]
[403017249,1769066944584,-300.0,0.00016325,2]
[403017250,1769066944621,-9400.01,0.00016326,2]
[403017251,1769066950915,-852.82,0.00014924,2]
[403017252,1769066950950,-1705.64,0.00015634,2]
[403017253,1769066951001,-4883.09,0.00016326,2]
[403017254,1769066953734,-10000.01,0.00016326,2]
[403017255,1769066959917,-10000.01,0.00016326,2]
[403017256,1769066976568,-10000.01,0.00016326,2]
[403017258,1769066985805,-10000.01,0.00016326,2]
[403017260,1769066992215,-10000.01,0.00016326,2]
[403017261,1769067010926,-1007.0,0.00016325,2]
[403017262,1769067010967,-7986.01,0.00016326,2]
[403017263,1769067011148,-10000.01,0.00016326,2]
[403017264,1769067011667,-422.02262056,0.00016326,2]
[403017265,1769067017184,-401.54766875,0.00016326,2]
[403017266,1769067017213,-657.0,0.00016326,2]
[403017267,1769067017249,-2558.45,0.00016345,2]
[403017268,1769067017336,-2766.0146625,0.00017056,2]
[403017269,1769067017380,-645.2553375,0.00017056,2]
[403017270,1769067017415,-4264.09,0.00017766,2]
[403017271,1769067017468,-181.319325,0.00018477,2]
[403017297,1769067032052,-179.22284546,0.00014757,2]
[403017301,1769067032083,-829.34715454,0.00014757,2]
[403017303,1769067032093,-2017.13,0.0001546,2]
[403017305,1769067032102,-3025.7,0.00016163,2]
[403017307,1769067032112,-4034.27,0.00016866,2]
[403017309,1769067032121,-5042.83,0.00017568,2]
[403017311,1769067032130,-721.68413075,0.00018271,2]
[403017330,1769067032142,-5329.71586925,0.00018271,2]
[403017332,1769067032361,-553.5,0.00018684,5]
[403017333,1769067032371,-449.5,0.00018684,5]
[403017334,1769067032380,-7059.97,0.00018974,2]
[403017335,1769067032390,-214.49,0.000194,2]
[403017336,1769067032399,-150.0,0.00019408,2]
[403017337,1769067032408,-729.0,0.00019417,2]
[403017338,1769067032417,-163.0,0.00019633,120]
[403017339,1769067032427,-8068.53,0.00019676,2]
[403017340,1769067032436,-638.02233805,0.00019808,2]
[403017341,1769067032445,-3877.0,0.00020074,2]
[403017342,1769067032455,-3874.0,0.00020256,2]
[403017343,1769067032464,-656.03,0.00020368,2]
[403017344,1769067032473,-2148.0,0.00020368,2]
[403017345,1769067032482,-630.638,0.00020368,2]
[403017346,1769067032491,-178.0,0.00020368,2]
[403017347,1769067032500,-417.0,0.00020368,2]
[403017348,1769067032510,-9077.1,0.00020379,2]
[403017349,1769067032519,-729.0,0.00020468,2]
[403017350,1769067032528,-2230.315306,0.00020535,2]